[Event "DEN-ch Seniors 2018"]
[Site "Hvidovre"]
[Date "2018.02.18"]
[Round "7"]
[White "Nielsen, Jorgen Lovgren"]
[Black "Olesen, Poul Erik Norgaard"]
[Result "1/2-1/2"]
[ECO "C41"]
[WhiteElo "2041"]
[BlackElo "2010"]
[Annotator "NA RC"]
[PlyCount "122"]
[EventDate "2018.??.??"]
[EventType "tourn"]
[EventCountry "DEN"]
[SourceTitle "playchess.com"]
[Source "ChessBase"]
[SourceQuality "1"]
[TimeControl "40/5400+30:1800+30"]

{[%evp 8,115,62,32767,32767,76,63,28,27,25,29,-5,28,22,64,59,60,32767,32767,-55,-49,-97,-62,-70,-64,-43,-58,-54,-30,32767,32767,32767,32767,32767,32767,32767,32767,32767,32767,32767,32767,32767,32767,-203,-170,-183,-183,-210,-227,32767,-171,-177,32767,-172,32767,32767,32767,32767,32767,-270,-286,-265,-303,-342,-304,-307,-238,-297,32767,32767,32767,32767,32767,32767,32767,32767,32767,-66,-8,-8,32767,32767,0,0,0,-12,-12,-8,-12,-22,-16,0,-22,-8,-9,-22,0,0,0,0,-4,0,0,-8,-8,-8,0,0,0,0]} 1. e4 {[%emt 0:00:00]} e5 {[%emt 0:00:06]} 2. Nf3 {[%emt 0:00:00]} d6 {[%emt 0:00:07]} 3. d4 {[%emt 0:00:14]} exd4 {[%emt 0:00:07]} 4. Nxd4 {[%emt 0:00:11]} g6 {[%emt 0:00:08]} 5. Nc3 {[%emt 0:00:39]} Bg7 {[%emt 0:00:09]} 6. Be3 {[%emt 0:02:30]} Nc6 {[%emt 0:01:57]} 7. Bc4 {[%emt 0:01:24]} Nf6 {[%emt 0:00:49] LiveBook: 32 Games} 8. f3 {[%emt 0:00:43]} O-O {[%emt 0:01:26]} 9. Qd2 {[%emt 0:00:35]} Nxd4 {[%emt 0:08:26]} (9... Ne5 $5 {[%cal Re5c4]} 10. Be2 a6 $11) 10. Bxd4 {[%emt 0:01:36]} ({But not} 10. Qxd4 Ng4 $15) 10... a6 {[%emt 0:00:10]} 11. O-O-O {[%emt 0:01:07]} b5 {[%emt 0:01:00] C50: Hungarian Defence and Giuoco Pianissimo} 12. Be2 {[%emt 0:05:20]} Be6 {[%emt 0:01:51]} 13. g4 $146 {[%emt 0:03:04]} ({Predecessor:} 13. Nd5 $11 c5 14. Bxf6 Bxf6 15. Nxf6+ Qxf6 16. Kb1 Rfd8 17. f4 d5 18. e5 Qe7 19. g4 {1-0 (37) Francois,O-Baluta,C (2295) Saint Affrique 1998}) 13... c5 {[%emt 0:07:02]} 14. Be3 {[%emt 0:04:00]} Qa5 {[%emt 0:18:10]} 15. Kb1 $1 {[%emt 0:04:11]} b4 {[%emt 0:09:55]} 16. Nd5 {[%emt 0:02:14]} Bxd5 {[%emt 0:02:15]} 17. exd5 {[%emt 0:00:20]} Rfc8 {[%emt 0:00:58]} 18. Bc4 {[%emt 0:01:47]} Nd7 {[%emt 0:01:52]} 19. f4 {[%emt 0:04:30]} Nb6 {[%emt 0:02:33]} 20. Qd3 {[%emt 0:00:38]} Bxb2 {[%emt 0:10:27]} 21. Kxb2 {[%emt 0:08:01]} Qa3+ {[%emt 0:01:09]} 22. Kb1 {[%emt 0:08:53]} Nxc4 {[%emt 0:00:16]} 23. Qxc4 {[%emt 0:00:14]} Qxe3 {[%emt 0:00:17]} 24. f5 {[%emt 0:09:57]} Re8 {[%emt 0:05:39]} 25. Rhe1 {[%emt 0:04:13]} Qf3 {[%emt 0:02:45]} 26. Rf1 {[%emt 0:07:47]} Qe4 {[%emt 0:01:08]} 27. Rf4 {[%emt 0:04:22]} Qxc4 {[%emt 0:02:21]} 28. Rxc4 {[%emt 0:00:06]} Re5 {[%emt 0:00:50]} 29. fxg6 {[%emt 0:00:40]} hxg6 {[%emt 0:00:10]} 30. Rf4 {[%emt 0:00:33]} Kg7 {[%emt 0:01:55]} 31. Kb2 {[%emt 0:03:27]} Rae8 {[%emt 0:00:38]} 32. h4 {[%emt 0:02:24]} Re4 {[%emt 0:02:46]} 33. Rdf1 {[%emt 0:01:04]} Rxf4 {[%emt 0:00:42]} 34. Rxf4 {[%emt 0:00:06]} Re5 {[%emt 0:00:12]} 35. c4 {[%emt 0:00:34]} (35. c3 {kämpft weiter.}) 35... bxc3+ {[%emt 0:00:31]} 36. Kxc3 {[%emt 0:00:06]} Rxd5 {[%emt 0:05:13]} 37. Ra4 {[%emt 0:00:14]} Rd1 {[%emt 0:06:09]} 38. Rxa6 {[%emt 0:00:49]} Kf6 {[%emt 0:00:21]} 39. a4 {[%emt 0:01:11]} Ke6 {[%emt 0:01:01]} 40. Ra8 {[%emt 0:00:00]} Rc1+ {[%emt 0:02:32]} 41. Kb2 {[%emt 0:05:25]} Rc4 {[%emt 0:02:34]} 42. h5 {[%emt 0:01:30]} gxh5 {[%emt 0:00:15]} 43. gxh5 {[%emt 0:00:10]} Rh4 {[%emt 0:00:23]} 44. a5 {[%emt 0:00:44]} Kd7 {[%emt 0:15:06]} 45. a6 {[%emt 0:11:56]} Kc7 {[%emt 0:00:48]} ({Don't go for} 45... Rxh5 $2 46. a7 $18) 46. a7 {[%emt 0:02:39]} Kb7 {[%emt 0:05:55]} 47. Rd8 $1 {[%emt 0:01:34]} Kxa7 {[%emt 0:00:11]} 48. Rxd6 {[%emt 0:00:12]} Rxh5 {[%emt 0:00:09]} 49. Rd7+ {[%emt 0:00:11]} Kb6 {[%emt 0:00:08]} 50. Rxf7 {[%emt 0:00:06]} Kb5 {[%emt 0:00:15]} 51. Rf4 {[%emt 0:01:19]} c4 {[%emt 0:00:20]} 52. Rf8 {[%emt 0:00:58]} Kb4 {[%emt 0:00:55]} 53. Rb8+ $1 {[%emt 0:00:17]} Rb5 {[%emt 0:00:13]} 54. Rxb5+ {[%emt 0:02:33]} Kxb5 {[%emt 0:00:09]} 55. Kc3 {[%emt 0:00:28]} Kc5 {[%emt 0:00:09]} 56. Kc2 {[%emt 0:00:33]} Kd4 {[%emt 0:00:12]} 57. Kd2 {[%emt 0:00:11]} c3+ {[%emt 0:00:08]} 58. Kc2 $11 {[%emt 0:00:13]} Kc4 {[%emt 0:00:07]} 59. Kc1 {[%emt 0:00:37]} Kb3 {[%emt 0:00:12]} 60. Kb1 {[%emt 0:00:10]} c2+ {[%emt 0:00:07]} 61. Kc1 {[%emt 0:00:05]} Kc3 {[%emt 0:00:09]} 1/2-1/2

[Event "DEN-ch Seniors 2018"]
[Site "Hvidovre"]
[Date "2018.02.18"]
[Round "7"]
[White "S. Munk, Kai"]
[Black "Hartung-Nielsen, Jens"]
[Result "1/2-1/2"]
[ECO "A01"]
[WhiteElo "2023"]
[BlackElo "2217"]
[Annotator "RC"]
[PlyCount "61"]
[EventDate "2018.??.??"]
[EventType "tourn"]
[EventCountry "DEN"]
[SourceTitle "playchess.com"]
[Source "ChessBase"]
[SourceQuality "1"]
[TimeControl "40/5400+30:1800+30"]

1. b3 {[%emt 0:00:00]} e5 {[%emt 0:01:34]} 2. Bb2 {[%emt 0:00:00]} Nc6 {[%emt 0:00:04]} 3. e3 {[%emt 0:00:12]} d5 {[%emt 0:00:10]} 4. d3 {[%emt 0:01:12]} Nf6 {[%emt 0:02:14]} 5. Nd2 {[%emt 0:00:21]} Bd6 {[%emt 0:01:47]} 6. Be2 {[%emt 0:03:32]} O-O {[%emt 0:00:18]} 7. Ngf3 {[%emt 0:00:58]} Qe7 {[%emt 0:01:44]} 8. O-O {[%emt 0:00:55]} a5 {[%emt 0:14:52]} 9. a3 {[%emt 0:00:22]} Bd7 {[%emt 0:05:31]} 10. h3 {[%emt 0:04:43]} Rae8 {[%emt 0:12:15]} 11. Nh2 {[%emt 0:12:14]} h6 {[%emt 0:02:09]} 12. c4 {[%emt 0:09:39]} d4 {[%emt 0:00:40]} 13. Bf3 {[%emt 0:10:32]} Bc5 {[%emt 0:05:02]} 14. Bxc6 {[%emt 0:04:22]} Bxc6 {[%emt 0:00:20]} 15. e4 {[%emt 0:00:07]} Nh7 {[%emt 0:03:04]} 16. Qe1 {[%emt 0:09:54]} f5 {[%emt 0:03:05]} 17. exf5 {[%emt 0:00:10]} Rxf5 {[%emt 0:00:27]} 18. Ne4 {[%emt 0:00:09]} Ng5 {[%emt 0:03:06]} 19. f3 {[%emt 0:03:12]} Nxe4 {[%emt 0:10:43]} 20. fxe4 {[%emt 0:00:19]} Rxf1+ {[%emt 0:00:07]} 21. Nxf1 {[%emt 0:01:18]} b6 {[%emt 0:00:18]} 22. Nh2 {[%emt 0:05:53]} Rf8 {[%emt 0:01:14]} 23. Nf3 {[%emt 0:00:53]} Bd7 {[%emt 0:01:07]} 24. Qg3 {[%emt 0:00:30]} Bd6 {[%emt 0:00:34]} 25. a4 {[%emt 0:04:21]} Kh7 {[%emt 0:01:53]} 26. Rf1 {[%emt 0:01:24]} Rf6 {[%emt 0:01:20]} 27. Nh4 {[%emt 0:02:20]} Rxf1+ {[%emt 0:02:17]} 28. Kxf1 {[%emt 0:00:07]} Qf6+ {[%emt 0:00:14]} 29. Nf3 {[%emt 0:00:43]} g5 {[%emt 0:09:27]} 30. Bc1 {[%emt 0:00:23]} Kg6 {[%emt 0:05:03]} 31. Bd2 {[%emt 0:00:40]} 1/2-1/2

[Event "DEN-ch Seniors 2018"]
[Site "Hvidovre"]
[Date "2018.02.18"]
[Round "7"]
[White "Jorgensen, Orla Eilegaard"]
[Black "Morkore, Thomas"]
[Result "0-1"]
[ECO "A03"]
[WhiteElo "1580"]
[BlackElo "1910"]
[Annotator "NA RC"]
[PlyCount "72"]
[EventDate "2018.??.??"]
[EventType "tourn"]
[EventCountry "DEN"]
[SourceTitle "playchess.com"]
[Source "ChessBase"]
[SourceQuality "1"]
[TimeControl "40/5400+30:1800+30"]

1. f4 {[%emt 0:07:50]} d5 {[%emt 0:01:05]} 2. Nf3 {[%emt 0:02:15]} Nf6 {[%emt 0:01:18]} 3. e3 {[%emt 0:00:14]} g6 {[%emt 0:03:09]} 4. d3 {[%emt 0:00:40] A03: Bird's Opening with 1...d5} (4. b4 Bg7 5. Bb2 O-O 6. a4 c6 7. c4 Bg4 8. Na3 Nbd7 9. Be2 a5 10. b5 Nb6 11. c5 Nbd7 12. d4 Ne4 13. Rb1 {0-1 (37) Fedoseev,V (2718)-Yu,Y (2751) Riadh 2017}) 4... Bg7 {[%emt 0:03:26]} 5. Nbd2 {[%emt 0:01:52]} O-O {[%emt 0:01:37]} 6. Ne5 {[%emt 0:02:17]} b6 $146 {[%emt 0:04:12]} ({Predecessor:} 6... c5 7. Be2 Nfd7 8. d4 Nc6 9. c3 Ndxe5 10. dxe5 f6 11. exf6 Bxf6 {0-1 (53) Koskre,R-Lauk,U (2342) Tallinn 2003}) 7. Ndf3 {[%emt 0:03:50]} Bb7 {[%emt 0:00:19]} 8. Be2 {[%emt 0:05:02]} Nbd7 {[%emt 0:01:59]} 9. b3 {[%emt 0:07:44] [#]} Ng4 $1 {[%emt 0:09:14]} 10. d4 {[%emt 0:08:23]} Ngxe5 {[%emt 0:01:17]} 11. fxe5 {[%emt 0:01:55]} f6 {[%emt 0:01:45]} 12. exf6 {[%emt 0:04:05]} exf6 {[%emt 0:03:30]} 13. O-O {[%emt 0:01:28]} Qe7 {[%emt 0:03:21]} 14. c4 {[%emt 0:02:35]} Bh6 {[%emt 0:02:19]} 15. Kh1 {[%emt 0:08:09]} Bxe3 {[%emt 0:03:00]} 16. Qd3 {[%emt 0:00:48]} Bxc1 {[%emt 0:00:30]} 17. Raxc1 {[%emt 0:00:18]} Rae8 {[%emt 0:07:57]} 18. Rfe1 {[%emt 0:04:48]} Qd6 {[%emt 0:01:09]} 19. Nh4 {[%emt 0:02:30]} Re4 {[%emt 0:04:29]} 20. Nf3 {[%emt 0:02:01]} c5 {[%emt 0:02:39]} 21. Bf1 {[%emt 0:00:50]} Rfe8 {[%emt 0:02:03]} 22. Rxe4 {[%emt 0:01:43]} dxe4 {[%emt 0:00:37]} 23. Qe3 {[%emt 0:00:22]} Rf8 {[%emt 0:04:44]} 24. Nh4 {[%emt 0:01:42]} cxd4 {[%emt 0:01:25]} 25. Qh6 {[%emt 0:00:36]} f5 {[%emt 0:01:21]} 26. c5 {[%emt 0:01:34]} bxc5 {[%emt 0:01:30]} 27. Bc4+ {[%emt 0:00:23]} Kh8 {[%emt 0:00:08]} 28. Rf1 {[%emt 0:01:26]} Qf6 {[%emt 0:01:41]} 29. Bb5 {[%emt 0:03:13]} Ne5 {[%emt 0:00:47]} 30. Be2 {[%emt 0:01:21]} d3 $19 {[%emt 0:01:25]} 31. Bd1 {[%emt 0:00:52]} Qg7 {[%emt 0:01:54]} 32. Qe3 {[%emt 0:01:10]} c4 {[%emt 0:00:34]} 33. bxc4 {[%emt 0:01:10]} Nxc4 {[%emt 0:00:14]} 34. Qc5 {[%emt 0:00:33]} Rc8 {[%emt 0:01:09]} 35. Qxa7 {[%emt 0:02:52]} e3 {[%emt 0:00:18]} 36. Nxf5 {[%emt 0:01:40]} Bxg2+ {[%emt 0:00:13]} 0-1